bitfinex/quotes_BTCUSD_20250907
["timestamp","ask_amount","ask_price","bid_price","bid_amount"]
[1757234799574,0.21362996,111270.0,111260.0,0.2190649]
[1757234799775,0.22265481,111270.0,111260.0,0.2190649]
[1757234801253,0.22265481,111270.0,111260.0,0.0695449]
[1757234801408,0.22265481,111270.0,111260.0,0.2190649]
[1757234803063,0.22265481,111270.0,111260.0,0.1499849]
[1757234804647,0.21362996,111270.0,111260.0,0.1499849]
[1757234805082,0.21362996,111270.0,111260.0,0.0004649]
[1757234805083,0.55362996,111270.0,111260.0,0.0004649]
[1757234805301,0.72669996,111270.0,111260.0,0.0004649]
[1757234805942,0.57717996,111270.0,111260.0,0.0004649]
[1757234806147,0.66909595,111270.0,111260.0,1e-08]
[1757234806558,0.66909595,111270.0,111260.0,0.00212001]
[1757234806559,0.54873996,111270.0,111260.0,0.00212001]
[1757234806984,0.55362996,111270.0,111260.0,0.00212001]
[1757234808190,0.55362996,111270.0,111260.0,1e-08]
[1757234810710,0.54873996,111270.0,111260.0,0.00212001]
[1757234812798,0.54873996,111270.0,111260.0,0.00510001]
[1757234813195,0.54873996,111270.0,111260.0,0.00212001]
[1757234818230,0.55069996,111270.0,111260.0,0.00212001]
[1757234818452,0.54873996,111270.0,111260.0,0.00212001]
[1757234819146,0.55069996,111270.0,111260.0,0.00212001]
[1757234819793,0.55362996,111270.0,111260.0,0.00212001]
[1757234820615,0.55362996,111270.0,111260.0,1e-08]
[1757234821414,0.55362996,111270.0,111260.0,0.00212001]
[1757234825928,0.55362996,111270.0,111260.0,1e-08]
[1757234827715,0.70314996,111270.0,111260.0,1e-08]
[1757234827920,0.17975912,111260.0,111250.0,0.40602001]
[1757234828266,0.18273912,111260.0,111250.0,0.14965903]
[1757234828483,0.18471912,111260.0,111250.0,0.14965903]
[1757234828698,0.21172203,111260.0,111250.0,0.00013903]
[1757234828884,0.21172203,111260.0,111250.0,0.14965903]
[1757234829364,0.21172203,111260.0,111250.0,0.00113903]
[1757234830476,0.21172203,111260.0,111250.0,0.15065903]
[1757234830929,0.21272203,111260.0,111250.0,0.15065903]
[1757234831133,0.21172203,111260.0,111250.0,0.00113903]
[1757234831306,0.21172203,111260.0,111250.0,0.15065903]
[1757234831527,0.21172203,111260.0,111250.0,0.14965903]
[1757234832496,0.21372203,111260.0,111250.0,0.14965903]
[1757234833550,0.21372203,111260.0,111250.0,0.00013903]
[1757234833803,0.21372203,111260.0,111250.0,0.14965903]
[1757234834244,0.21472203,111260.0,111250.0,0.14965903]
[1757234838082,0.20976203,111260.0,111250.0,0.15164903]
[1757234838211,0.20976203,111260.0,111250.0,0.00212903]
[1757234838436,0.20976203,111260.0,111250.0,0.15164903]
[1757234838635,0.21472203,111260.0,111250.0,0.15164903]
[1757234839888,0.20976203,111260.0,111250.0,0.15164903]
[1757234840303,0.21472203,111260.0,111250.0,0.15164903]
[1757234844567,0.20976203,111260.0,111250.0,0.15164903]
[1757234845302,0.21472203,111260.0,111250.0,0.15164903]
[1757234847352,0.21472203,111260.0,111250.0,0.14965903]
[1757234852584,0.21472203,111260.0,111250.0,0.00013903]
[1757234852743,0.21472203,111260.0,111250.0,0.14965903]
[1757234853144,0.21472203,111260.0,111250.0,0.15164903]
[1757234853721,0.21472203,111260.0,111250.0,0.14965903]
[1757234856013,0.21472203,111260.0,111250.0,0.39965903]
[1757234856880,0.21472203,111260.0,111250.0,0.40164903]
[1757234857275,0.21472203,111260.0,111250.0,0.39965903]
[1757234862234,0.21472203,111260.0,111250.0,0.25013903]
[1757234862644,0.21472203,111260.0,111250.0,0.39961903]
[1757234867338,0.21472203,111260.0,111250.0,0.25013903]
[1757234867543,0.21472203,111260.0,111250.0,0.39961903]
[1757234869413,0.21472203,111260.0,111250.0,0.25013903]
[1757234869621,0.55472203,111260.0,111250.0,0.25013903]
[1757234869974,0.55472203,111260.0,111250.0,0.39961903]
[1757234873513,0.55472203,111260.0,111250.0,0.25013903]
[1757234873737,0.55472203,111260.0,111250.0,0.39961903]
[1757234875768,0.55472203,111260.0,111250.0,0.25013903]
[1757234876188,0.57941203,111260.0,111250.0,0.25013903]
[1757234876745,0.17977528,111250.0,111240.0,0.2504]
[1757234876903,0.32925528,111250.0,111240.0,0.39988]
[1757234877103,0.33453528,111250.0,111240.0,0.39988]
[1757234877522,0.36154271,111250.0,111240.0,0.39988]
[1757234878504,0.36254271,111250.0,111240.0,0.39988]
[1757234885665,0.36254271,111250.0,111240.0,0.2504]
[1757234887170,0.70254271,111250.0,111240.0,0.2504]
[1757234888555,0.17979144,111240.0,111230.0,0.39988]
[1757234888761,0.18276144,111240.0,111230.0,0.39988]
[1757234888961,0.18488144,111240.0,111230.0,0.39988]
[1757234889198,0.21188955,111240.0,111230.0,0.39988]
[1757234889412,0.2210033,111240.0,111230.0,0.39988]
[1757234889792,0.2210033,111240.0,111230.0,0.40198]
[1757234890141,0.2210033,111240.0,111230.0,0.40298]
[1757234890979,0.2210033,111240.0,111230.0,0.40088]
[1757234891204,0.2210033,111240.0,111230.0,0.39988]
[1757234891987,0.2220033,111240.0,111230.0,0.39988]
[1757234902257,0.2220033,111240.0,111230.0,0.40198]
[1757234912341,0.2220033,111240.0,111230.0,0.14948]
[1757234916800,0.1798076,111230.0,111220.0,0.35961325]
[1757234916959,0.1798076,111230.0,111220.0,0.50909325]
[1757234917282,0.1848976,111230.0,111220.0,0.51118325]
[1757234917501,0.21190756,111230.0,111220.0,0.51118325]
[1757234918696,0.21190756,111230.0,111220.0,0.51218325]
[1757234918897,0.20978756,111230.0,111220.0,0.51218325]
[1757234920094,0.20978756,111230.0,111200.0,0.2504]
[1757234920095,0.51982377,111220.0,111200.0,0.2504]
[1757234920311,0.18493994,111210.0,111200.0,0.15096523]
[1757234920526,0.17983994,111210.0,111200.0,0.15096523]
[1757234920720,0.17983994,111210.0,111200.0,0.15321343]
[1757234920940,0.20685566,111210.0,111200.0,0.15321343]
[1757234921684,0.20693905,111210.0,111200.0,0.15321343]
[1757234922585,0.20793905,111210.0,111200.0,0.15321343]
[1757234923357,0.21097905,111210.0,111200.0,0.15096523]
[1757234924730,0.21303905,111210.0,111200.0,0.15096523]
[1757234925030,0.21303905,111210.0,111200.0,0.30044523]
[1757234925219,0.21303905,111210.0,111200.0,0.15096523]
[1757234925444,0.21303905,111210.0,111200.0,0.30044523]
[1757234925681,0.17985611,111200.0,111190.0,0.39988]
[1757234925917,0.18191611,111200.0,111190.0,0.39988]
[1757234926113,0.18495611,111200.0,111190.0,0.39988]
[1757234926363,0.21197495,111200.0,111190.0,0.39988]
[1757234926808,0.20687495,111200.0,111190.0,0.39988]
[1757234936178,0.20687495,111200.0,111190.0,0.66638]
[1757234950655,0.20687495,111200.0,111190.0,0.75829599]
[1757234960120,0.21008495,111200.0,111190.0,0.75829599]
[1757234960739,0.20687495,111200.0,111190.0,0.75829599]
[1757234961552,0.17985611,111200.0,111190.0,0.75829599]
[1757234962566,0.17985611,111200.0,111190.0,0.60881599]
[1757234962769,0.17985611,111200.0,111190.0,0.75829599]
[1757234967665,0.17985611,111200.0,111190.0,0.82741599]
[1757234971244,0.18509611,111200.0,111190.0,0.7355]
[1757234971481,0.18509611,111200.0,111190.0,0.5169]
[1757234971693,0.18509611,111200.0,111190.0,0.39988]
[1757234972338,0.19421118,111200.0,111190.0,0.39988]
[1757234973189,0.19521118,111200.0,111190.0,0.39988]
[1757234975008,0.18609611,111200.0,111190.0,0.39988]
[1757234975452,0.19526248,111200.0,111190.0,0.39988]
[1757234976068,0.18609611,111200.0,111190.0,0.39988]
[1757234979685,0.18085611,111200.0,111190.0,0.39988]
[1757234980295,0.18391611,111200.0,111190.0,0.39988]
[1757234981767,0.18595611,111200.0,111190.0,0.39988]
[1757234983802,0.18085611,111200.0,111190.0,0.39988]
[1757234984699,0.18391611,111200.0,111190.0,0.42081882]
[1757234985023,0.18085611,111200.0,111190.0,0.42081882]
[1757234985882,0.18391611,111200.0,111190.0,0.42081882]
[1757234988055,0.18085611,111200.0,111190.0,0.42081882]
[1757234992061,0.18391611,111200.0,111190.0,0.42081882]
[1757234996080,0.18085611,111200.0,111190.0,0.42081882]
[1757234998809,0.18391611,111200.0,111190.0,0.42081882]
[1757234999306,0.18085611,111200.0,111190.0,0.42081882]
[1757234999767,0.18391611,111200.0,111190.0,0.42081882]
[1757235000199,0.18085611,111200.0,111190.0,0.42081882]
[1757235001377,0.18085611,111200.0,111190.0,0.77923481]
[1757235005499,0.18391611,111200.0,111190.0,0.62975481]
[1757235005711,0.18391611,111200.0,111190.0,0.77919481]
[1757235008250,0.18341611,111200.0,111190.0,0.77919481]
[1757235012328,0.18035611,111200.0,111190.0,0.77919481]
[1757235012988,0.18335611,111200.0,111190.0,0.77919481]
[1757235014335,0.18035611,111200.0,111190.0,0.77919481]
[1757235014797,0.18335611,111200.0,111190.0,0.77919481]
[1757235016839,0.18035611,111200.0,111190.0,0.77919481]
[1757235017335,0.18035611,111200.0,111190.0,0.84831481]
[1757235017578,0.18335611,111200.0,111190.0,0.84831481]
[1757235018426,0.18035611,111200.0,111190.0,0.84831481]
[1757235019022,0.18335611,111200.0,111190.0,0.84831481]
[1757235021957,0.18335611,111200.0,111190.0,0.87532982]
[1757235025473,0.18035611,111200.0,111190.0,0.87532982]
[1757235028082,0.18335611,111200.0,111190.0,0.87532982]
[1757235029552,0.18335611,111200.0,111190.0,0.72588982]
[1757235029753,0.18335611,111200.0,111190.0,0.87528982]
[1757235033122,0.18335611,111200.0,111190.0,0.80616982]
[1757235050009,0.18536611,111200.0,111190.0,0.80616982]
[1757235050220,0.18335611,111200.0,111190.0,0.80616982]
[1757235051097,0.18035611,111200.0,111190.0,0.80616982]
[1757235051445,0.18035611,111200.0,111190.0,0.65676982]
[1757235051662,0.18035611,111200.0,111190.0,0.80616982]
[1757235057143,0.18035611,111200.0,111190.0,0.87528982]
[1757235059497,0.18359611,111200.0,111190.0,0.87528982]
[1757235061009,0.18035611,111200.0,111190.0,0.87528982]
[1757235064776,0.18359611,111200.0,111190.0,0.87528982]
[1757235066376,0.18035611,111200.0,111190.0,0.87528982]
[1757235070371,0.18562611,111200.0,111190.0,0.87540982]
[1757235072043,0.18347611,111200.0,111190.0,0.87540982]
[1757235075021,0.18035611,111200.0,111190.0,0.87540982]
[1757235081034,0.18035611,111200.0,111190.0,0.87540982]
[1757235081792,0.18102805,111200.0,111190.0,0.87540982]
[1757235083553,0.00167194,111200.0,111190.0,1.40426249]
[1757235087224,0.00167194,111200.0,111190.0,1.21540982]
[1757235088290,0.00167194,111200.0,111190.0,1.29560114]
[1757235088984,0.00167194,111200.0,111190.0,1.47547343]
[1757235089595,0.00067194,111200.0,111190.0,1.47547343]
[1757235090578,0.00067194,111200.0,111190.0,1.47747343]
[1757235093406,0.00067194,111200.0,111190.0,1.39728211]
[1757235093815,0.00067194,111200.0,111190.0,1.39528211]
[1757235094039,0.00067194,111200.0,111190.0,1.39628211]
[1757235094385,0.00067194,111200.0,111190.0,1.41129211]
[1757235094592,0.00067194,111200.0,111190.0,1.41029211]
[1757235094803,0.00067194,111200.0,111190.0,1.41229211]
[1757235095175,0.00067194,111200.0,111190.0,1.4924605]
[1757235095584,0.00067194,111200.0,111190.0,1.8924605]
[1757235096324,8.339e-05,111210.0,111200.0,0.62676688]
[1757235096549,8.339e-05,111210.0,111200.0,0.87060287]
[1757235097028,8.339e-05,111210.0,111200.0,0.89760828]
[1757235097621,8.339e-05,111210.0,111200.0,0.89860828]
[1757235098569,8.339e-05,111210.0,111200.0,0.89856828]
[1757235100745,8.339e-05,111210.0,111200.0,0.89848828]
[1757235102271,0.25941035,111230.0,111220.0,0.36093882]
[1757235102588,0.25941035,111230.0,111220.0,0.93957898]
[1757235102997,0.18879823,111230.0,111220.0,0.93957898]
[1757235103403,0.18879823,111230.0,111220.0,0.96658311]
[1757235104005,0.18879823,111230.0,111220.0,1.00738747]
[1757235105029,0.19408823,111230.0,111220.0,1.00734747]
[1757235105237,0.19408823,111230.0,111220.0,1.00726747]
[1757235110031,0.19408823,111230.0,111220.0,0.85562747]
[1757235110241,0.19408823,111230.0,111220.0,1.00722747]
[1757235111337,0.19408823,111230.0,111220.0,0.66722747]
[1757235114002,0.22109505,111230.0,111220.0,0.66722747]
[1757235141923,0.19408823,111230.0,111220.0,0.64022334]
[1757235150288,0.19194823,111230.0,111220.0,0.64022334]
[1757235150720,0.19194823,111230.0,111220.0,0.64916765]
[1757235150930,0.19409823,111230.0,111220.0,0.64916765]
[1757235151136,0.19194823,111230.0,111220.0,0.64916765]
[1757235161690,0.18879823,111230.0,111220.0,0.64916765]
[1757235161898,0.19198823,111230.0,111220.0,0.64916765]
[1757235166850,0.18879823,111230.0,111220.0,0.64916765]
[1757235167190,0.19198823,111230.0,111220.0,0.64916765]
[1757235168089,0.19412823,111230.0,111220.0,0.64916765]
[1757235169989,0.19412823,111230.0,111220.0,0.64022334]
[1757235170234,0.19412823,111230.0,111220.0,0.63910334]
[1757235175381,0.19412823,111230.0,111220.0,0.63918334]
[1757235183598,0.19412823,111230.0,111220.0,0.33496417]
[1757235183814,0.19412823,111230.0,111220.0,0.48536417]
[1757235184007,0.24443894,111230.0,111220.0,0.48536417]
[1757235185187,0.24443894,111230.0,111220.0,0.2196195]
[1757235186821,0.24443894,111230.0,111220.0,0.0692195]
[1757235187066,0.24443894,111230.0,111220.0,0.2195795]
[1757235190786,0.22113894,111230.0,111220.0,0.2195795]
[1757235225442,0.22113894,111230.0,111220.0,0.2190995]
[1757235226371,0.67750493,111230.0,111220.0,1e-08]
[1757235226644,0.17983994,111210.0,111200.0,0.06908]
[1757235226802,0.17983994,111210.0,111200.0,0.23989882]
[1757235227175,0.18489994,111210.0,111200.0,0.23989882]
[1757235227964,0.21191494,111210.0,111200.0,0.23989882]
[1757235228790,0.21191494,111210.0,111200.0,0.24089882]
[1757235229186,0.21191494,111210.0,111200.0,0.23989882]
[1757235229899,0.21291494,111210.0,111200.0,0.23989882]
[1757235235639,0.21291494,111210.0,111200.0,0.23993882]
[1757235246656,0.21291494,111210.0,111200.0,0.09001882]
[1757235246859,0.21291494,111210.0,111200.0,0.23993882]
[1757235254677,0.21291494,111210.0,111200.0,0.09001882]
[1757235254942,0.21291494,111210.0,111200.0,0.23993882]
[1757235268997,0.17985611,111200.0,111190.0,0.51614467]
[1757235269225,0.17985611,111200.0,111190.0,0.40028]
[1757235269630,0.17985611,111200.0,111190.0,0.42121882]
[1757235269985,0.20687166,111200.0,111190.0,0.42121882]
[1757235274116,0.20687166,111200.0,111190.0,0.68696349]
[1757235279127,0.21219166,111200.0,111190.0,0.68696349]
[1757235282689,0.21008166,111200.0,111190.0,0.68696349]
[1757235284642,0.21219166,111200.0,111190.0,0.68696349]
[1757235288613,0.21219166,111200.0,111190.0,0.53708349]
[1757235288762,0.21219166,111200.0,111190.0,0.68696349]
[1757235293550,0.21219166,111200.0,111190.0,0.75608349]
[1757235295654,0.21219166,111200.0,111190.0,0.60620349]
[1757235295895,0.21219166,111200.0,111190.0,0.75608349]
[1757235298518,0.21219166,111200.0,111190.0,0.60620349]
[1757235298697,0.21219166,111200.0,111190.0,0.75604349]
[1757235303958,0.21219166,111200.0,111190.0,0.49029882]
[1757235306954,0.21219166,111200.0,111190.0,0.34045882]
[1757235307154,0.21219166,111200.0,111190.0,0.49029882]
[1757235314430,0.21219166,111200.0,111190.0,0.34045882]
[1757235314701,0.21219166,111200.0,111190.0,0.49029882]
[1757235323072,0.21219166,111200.0,111190.0,0.34045882]
[1757235323293,0.21219166,111200.0,111190.0,0.49029882]
[1757235329408,0.21008166,111200.0,111190.0,0.49029882]
[1757235329762,0.21217166,111200.0,111190.0,0.49029882]
[1757235332042,0.21217166,111200.0,111190.0,0.34045882]
[1757235332246,0.21217166,111200.0,111190.0,0.49025882]
[1757235339591,0.22100338,111190.0,111180.0,0.73520404]
[1757235340360,0.22100338,111190.0,111180.0,0.75614286]
[1757235343952,0.22100338,111190.0,111180.0,0.58540404]
[1757235344195,0.22100338,111190.0,111180.0,0.73520404]
[1757235346183,0.22100338,111190.0,111180.0,0.10384389]
[1757235346420,0.22100338,111190.0,111180.0,1e-08]
[1757235347207,0.17988846,111180.0,111170.0,0.35774232]
[1757235347414,0.18196846,111180.0,111170.0,0.52856453]
[1757235347613,0.18502846,111180.0,111170.0,0.52856453]
[1757235347851,0.21204873,111180.0,111170.0,0.52856453]
[1757235349067,0.21204873,111180.0,111170.0,0.37876453]
[1757235349297,0.21204873,111180.0,111170.0,0.52856453]
[1757235349702,0.21204873,111180.0,111170.0,0.50762571]
[1757235350614,0.21204873,111180.0,111170.0,0.46940339]
[1757235350935,0.21204873,111180.0,111170.0,0.05766077]
[1757235351143,0.17990465,111170.0,111160.0,0.34045882]
[1757235351345,0.18504465,111170.0,111160.0,0.58221481]
[1757235351540,0.18504465,111170.0,111160.0,0.34045882]
[1757235351783,0.18504465,111170.0,111160.0,0.49025882]
[1757235351988,0.21206752,111170.0,111160.0,0.49025882]
[1757235352192,0.21206752,111170.0,111160.0,0.34045882]
[1757235352415,0.21206752,111170.0,111160.0,0.49025882]
[1757235353111,0.21206752,111170.0,111160.0,0.34045882]
[1757235353323,0.21206752,111170.0,111160.0,0.49025882]
[1757235353542,0.20692752,111170.0,111160.0,0.49025882]
[1757235353751,0.20692752,111170.0,111160.0,0.49125882]
[1757235355370,0.20692752,111170.0,111160.0,0.49225882]
[1757235377807,0.17993702,111150.0,111140.0,0.35774232]
[1757235377958,0.17993702,111150.0,111140.0,0.59997831]
[1757235379376,0.17993702,111150.0,111140.0,0.60197831]
[1757235379582,0.17993702,111150.0,111140.0,0.60297831]
[1757235379789,0.17993702,111150.0,111140.0,0.62391713]
[1757235380194,0.17993702,111150.0,111140.0,0.66423705]
[1757235381677,0.17993702,111150.0,111140.0,0.66223705]
[1757235382117,0.17993702,111150.0,111140.0,0.66323705]
[1757235383608,0.17993702,111150.0,111140.0,0.85218209]
[1757235384948,0.17993702,111150.0,111140.0,0.66323705]
[1757235385148,0.17993702,111150.0,111140.0,0.85218209]
[1757235394906,0.17993702,111150.0,111140.0,0.66323705]
[1757235397969,0.17993702,111150.0,111140.0,0.85218209]
[1757235400853,0.17993702,111150.0,111140.0,0.66323705]
[1757235401592,0.17993702,111150.0,111140.0,0.62291713]
[1757235404998,0.17993702,111150.0,111140.0,0.66257355]
[1757235406297,0.17993702,111150.0,111140.0,0.74274194]
[1757235409132,0.17993702,111150.0,111140.0,0.70308552]
[1757235415598,0.17993702,111150.0,111140.0,0.70284552]
[1757235417213,0.17993702,111150.0,111140.0,0.62267713]
[1757235418689,0.17993702,111150.0,111140.0,0.47259713]
[1757235418875,0.17993702,111150.0,111140.0,0.62267713]
[1757235421234,0.17993702,111150.0,111140.0,0.62263713]
[1757235426835,0.20696113,111150.0,111140.0,0.62263713]
[1757235427489,0.20696113,111150.0,111140.0,0.81161908]
[1757235428354,0.20696113,111150.0,111140.0,0.62263713]
[1757235430370,0.20696113,111150.0,111140.0,0.81161908]
[1757235430790,0.17993702,111150.0,111140.0,0.81161908]
[1757235432844,0.17993702,111150.0,111140.0,0.66157908]
[1757235433121,0.17993702,111150.0,111140.0,0.62259713]
[1757235437926,0.17993702,111150.0,111140.0,0.81157908]
[1757235441119,0.17993702,111150.0,111140.0,0.62259713]
[1757235441321,0.17993702,111150.0,111140.0,0.81157908]
[1757235442816,0.20696114,111150.0,111140.0,0.81157908]
[1757235447283,0.20696114,111150.0,111140.0,0.62259713]
[1757235447710,0.21001114,111150.0,111140.0,0.62259713]
[1757235448690,0.21212114,111150.0,111140.0,0.62259713]
[1757235448851,0.21212114,111150.0,111140.0,0.62255713]
[1757235449511,0.21212114,111150.0,111140.0,0.41343599]
[1757235449737,0.21212114,111150.0,111140.0,0.56339599]
[1757235468614,0.21212114,111150.0,111140.0,0.56335599]
[1757235473273,0.20696114,111150.0,111140.0,0.58429481]
[1757235474836,0.21011114,111150.0,111140.0,0.58429481]
[1757235475048,0.21011114,111150.0,111140.0,0.43437481]
[1757235475182,0.21011114,111150.0,111140.0,0.58429481]
[1757235487434,0.21210114,111150.0,111140.0,0.58429481]
[1757235490631,0.21210114,111150.0,111140.0,0.6113209]
[1757235502741,0.18507702,111150.0,111140.0,0.58429481]
[1757235521737,0.18507702,111150.0,111140.0,0.41343599]
[1757235521985,0.18507702,111150.0,111140.0,0.56343599]
[1757235548020,0.18507702,111150.0,111140.0,0.41343599]
[1757235548234,0.18507702,111150.0,111140.0,0.47144]
[1757235548655,0.21210471,111150.0,111140.0,0.47144]
[1757235549280,0.20696471,111150.0,111140.0,0.56335599]
[1757235549501,0.20696471,111150.0,111140.0,0.58429481]
[1757235549714,0.17993702,111150.0,111140.0,0.58429481]
[1757235550364,0.17993702,111150.0,111140.0,0.61131968]
[1757235556546,0.17993702,111150.0,111140.0,0.58429481]
[1757235557615,0.17992083,111160.0,111150.0,0.02093882]
[1757235557823,0.17992083,111160.0,111150.0,0.34346107]
[1757235558157,0.17992083,111160.0,111150.0,0.60996107]
[1757235559240,0.18092083,111160.0,111150.0,0.52927481]
[1757235559714,0.18092083,111160.0,111150.0,0.55629319]
[1757235560546,0.17992083,111160.0,111150.0,0.55629319]
[1757235560955,0.17992083,111160.0,111150.0,0.59661757]
[1757235562866,0.17992083,111160.0,111150.0,0.59761757]
[1757235569834,0.17992083,111160.0,111150.0,0.44769757]
[1757235570058,0.17992083,111160.0,111150.0,0.59757757]
[1757235582397,0.17992083,111160.0,111150.0,0.67826383]
[1757235583234,0.17992083,111160.0,111150.0,0.52838383]
[1757235583451,0.17992083,111160.0,111150.0,0.67826383]
[1757235586547,0.17992083,111160.0,111150.0,0.52838383]
[1757235586764,0.17992083,111160.0,111150.0,0.67826383]
[1757235594343,0.17992083,111160.0,111150.0,0.67826383]
[1757235597152,0.17992083,111160.0,111150.0,0.52838383]
[1757235597356,0.17992083,111160.0,111150.0,0.67826383]
[1757235597593,0.18495083,111160.0,111150.0,0.52838383]
[1757235597838,0.18495083,111160.0,111150.0,0.67826383]
[1757235600130,0.18495083,111160.0,111150.0,0.59757757]
[1757235601329,0.18495083,111160.0,111150.0,0.57055919]
[1757235601547,0.18495083,111160.0,111150.0,0.42067919]
[1757235601756,0.18495083,111160.0,111150.0,0.57055919]
[1757235603421,0.18495083,111160.0,111150.0,0.30405919]
[1757235610630,0.18291083,111160.0,111150.0,0.30405919]
[1757235611264,0.18495083,111160.0,111150.0,0.30405919]
[1757235611917,0.18291083,111160.0,111150.0,0.30405919]
[1757235615060,0.18495083,111160.0,111150.0,0.30405919]
[1757235616121,0.18495083,111160.0,111150.0,0.30352318]
[1757235617495,0.18291083,111160.0,111150.0,0.30352318]
[1757235617709,0.17992083,111160.0,111150.0,0.30352318]
[1757235618617,0.18301083,111160.0,111150.0,0.30352318]
[1757235620158,0.18505083,111160.0,111150.0,0.30352318]
[1757235623417,0.17992083,111160.0,111150.0,0.30352318]
[1757235623799,0.17992083,111160.0,111150.0,0.33054566]
[1757235626093,0.17992083,111160.0,111150.0,0.41123192]
[1757235627152,0.17992083,111160.0,111150.0,0.67773192]
[1757235628674,0.18505083,111160.0,111150.0,0.67769192]
[1757235633221,0.18301083,111160.0,111150.0,0.67769192]
[1757235639356,0.18516083,111160.0,111150.0,0.67769192]
[1757235640543,0.18516083,111160.0,111150.0,0.52785192]
[1757235640907,0.18516083,111160.0,111150.0,0.67769192]
[1757235641056,0.18301083,111160.0,111150.0,0.67769192]
[1757235644568,0.18301083,111160.0,111150.0,0.52785192]
[1757235644756,0.18301083,111160.0,111150.0,0.67769192]
[1757235645193,0.18516083,111160.0,111150.0,0.67769192]
[1757235645526,0.18516083,111160.0,111150.0,0.52785192]
[1757235645760,0.18301083,111160.0,111150.0,0.67769192]
[1757235647850,0.18301083,111160.0,111150.0,0.74681192]
[1757235648058,0.18516083,111160.0,111150.0,0.74681192]
[1757235651382,0.18301083,111160.0,111150.0,0.74681192]
[1757235652196,0.18301083,111160.0,111150.0,0.59697192]
[1757235652378,0.18301083,111160.0,111150.0,0.74681192]
[1757235654486,0.18516083,111160.0,111150.0,0.74681192]
[1757235655515,0.18516083,111160.0,111150.0,0.59697192]
[1757235655707,0.18516083,111160.0,111150.0,0.74681192]
[1757235660905,0.18301083,111160.0,111150.0,0.74681192]
[1757235666894,0.18516083,111160.0,111150.0,0.74681192]
[1757235667330,0.18301083,111160.0,111150.0,0.74681192]
[1757235676098,0.18496083,111160.0,111150.0,0.74681192]
[1757235676511,0.18301083,111160.0,111150.0,0.74681192]
[1757235681439,0.18301083,111160.0,111150.0,0.74677192]
[1757235682282,0.18496083,111160.0,111150.0,0.74677192]
[1757235685068,0.18301083,111160.0,111150.0,0.74677192]
[1757235691743,0.18496083,111160.0,111150.0,0.74677192]
[1757235692411,0.18496083,111160.0,111150.0,0.48027192]
[1757235696001,0.18496083,111160.0,111150.0,0.22938285]
[1757235696216,0.21198522,111160.0,111150.0,0.35212037]
[1757235702880,0.21198522,111160.0,111150.0,0.26020438]
[1757235703096,0.23589522,111160.0,111150.0,0.26020438]
[1757235706289,0.23589522,111160.0,111150.0,0.11044438]
[1757235706495,0.23589522,111160.0,111150.0,0.26020438]
[1757235726196,0.17993702,111150.0,111140.0,0.33108626]
[1757235726413,0.18503702,111150.0,111140.0,0.40012]
[1757235726927,0.21206572,111150.0,111140.0,0.40012]
[1757235728284,0.21306572,111150.0,111140.0,0.2504]
[1757235728506,0.21306572,111150.0,111140.0,0.40012]
[1757235732399,0.22213852,111150.0,111140.0,0.40024]
[1757235732632,0.21306572,111150.0,111140.0,0.40024]
[1757235733976,0.21306572,111150.0,111140.0,0.3729673]
[1757235740340,0.21306572,111150.0,111140.0,0.2231273]
[1757235740575,0.21306572,111150.0,111140.0,0.3730473]
[1757235754760,0.17995321,111140.0,111130.0,0.4002]
[1757235754903,0.18198321,111140.0,111130.0,0.4002]
[1757235755139,0.20875321,111140.0,111130.0,0.4002]
[1757235755319,0.1799694,111130.0,111120.0,0.35965759]
[1757235755524,0.1851494,111130.0,111120.0,0.50945759]
[1757235755970,0.18519583,111130.0,111120.0,0.50945759]
[1757235756215,0.2122284,111130.0,111120.0,0.50945759]
[1757235757869,0.2142284,111130.0,111120.0,0.50945759]
[1757235758704,0.2152284,111130.0,111120.0,0.50945759]
[1757235758923,0.2152284,111130.0,111120.0,0.25]
[1757235759139,0.2152284,111130.0,111120.0,0.3998]
[1757235759362,0.2152284,111130.0,111120.0,0.25]
[1757235759588,0.2152284,111130.0,111120.0,0.39976]
[1757235760364,0.2152284,111130.0,111120.0,0.49167599]
[1757235760566,0.2131984,111130.0,111120.0,0.49167599]
[1757235760984,0.2152084,111130.0,111120.0,0.49167599]
[1757235762651,0.2152084,111130.0,111120.0,0.53294195]
[1757235768266,0.2152084,111130.0,111120.0,0.18282195]
[1757235771600,0.2152084,111130.0,111120.0,0.18278195]
[1757235800209,0.18616583,111130.0,111120.0,0.18278195]
[1757235800844,0.18616583,111130.0,111120.0,0.18282195]
[1757235803357,0.18416583,111130.0,111120.0,0.18282195]
[1757235803808,0.18516583,111130.0,111120.0,0.18282195]
[1757235804032,0.2121981,111130.0,111120.0,0.18282195]
[1757235804412,0.2111981,111130.0,111120.0,0.18282195]
[1757235806535,0.2111981,111130.0,111120.0,0.29567676]
[1757235806750,0.18101583,111130.0,111120.0,0.29567676]
[1757235806950,0.18101583,111130.0,111120.0,0.48475239]
[1757235807242,0.18101583,111130.0,111120.0,0.29567676]
[1757235808087,0.18101583,111130.0,111120.0,0.56217676]
[1757235808297,0.18410583,111130.0,111120.0,0.56217676]
[1757235819591,0.18410583,111130.0,111120.0,0.41233676]
[1757235819788,0.18410583,111130.0,111120.0,0.56213676]
[1757235820448,0.18410583,111130.0,111120.0,1.46936365]
[1757235820449,0.00104643,111130.0,111120.0,1.46936365]
[1757235820572,0.00104643,111130.0,111120.0,1.54095988]
[1757235821630,0.00104643,111130.0,111120.0,1.56798531]
[1757235821835,4.643e-05,111130.0,111120.0,1.56798531]
[1757235822658,4.643e-05,111130.0,111120.0,1.57198531]
[1757235823732,4.643e-05,111130.0,111120.0,1.30548531]
[1757235823949,4.643e-05,111130.0,111120.0,1.15568531]
[1757235824142,4.643e-05,111130.0,111120.0,1.30544531]
[1757235824788,4.643e-05,111130.0,111120.0,1.15568531]
[1757235825028,4.643e-05,111130.0,111120.0,1.30544531]
[1757235828642,4.643e-05,111130.0,111120.0,1.15568531]
[1757235828856,4.643e-05,111130.0,111120.0,1.57194531]
[1757235831911,4.643e-05,111130.0,111120.0,1.42218531]
[1757235832110,4.643e-05,111130.0,111120.0,1.57194531]
[1757235832940,4.643e-05,111130.0,111120.0,1.42218531]
[1757235833163,4.643e-05,111130.0,111120.0,1.57194531]
[1757235835598,4.643e-05,111130.0,111120.0,1.42218531]
[1757235835829,4.643e-05,111130.0,111120.0,1.57194531]
[1757235838238,4.643e-05,111130.0,111120.0,1.42218531]
[1757235838452,4.643e-05,111130.0,111120.0,1.57190531]
[1757235840624,4.643e-05,111130.0,111120.0,1.04403405]
[1757235840854,4.643e-05,111130.0,111120.0,1.57190531]
[1757235844108,4.643e-05,111130.0,111120.0,1.19375405]
[1757235844328,4.643e-05,111130.0,111120.0,1.57190531]
[1757235845212,4.643e-05,111130.0,111120.0,1.19375405]
[1757235845399,4.643e-05,111130.0,111120.0,1.57190531]
[1757235849396,6.43e-06,111130.0,111120.0,1.49121905]
[1757235850059,6.43e-06,111130.0,111120.0,1.49121905]
[1757235851594,6.43e-06,111130.0,111120.0,1.60331842]
[1757235853411,6.43e-06,111130.0,111120.0,1.22516716]
[1757235853633,6.43e-06,111130.0,111120.0,1.60331842]
[1757235855676,6.43e-06,111130.0,111120.0,1.41415348]